Cogmind - Beta 14 @@@ ROGUE MODE // 2024.10.08 @ 19:33:07 // Winter2022/Polymind Player: jimmyl Result: Destroyed by G-47 Trooper with Particle Gun Performance ------------- Evolutions (3) 1500 Regions Visited (7) 1400 Robots Destroyed (52) 260 Value Destroyed (1840) 1840 Prototype IDs (0) 0 Alien Tech Used (0) 0 Bonus (2607) 2607 TOTAL SCORE: 7377 Bonus ------- Polymind Skill 2343 High Alert Combat Kills 44 Follower Combat Kills 20 Entered Garrisons 200 Cogmind --------- Core Integrity 0/700 Matter 80/100 Energy 109/110 System Corruption 5% Temperature Cool (9) Movement Flying (32) Location -7/Lower Caves Parts ------- > --- POWER (1) -------- Light Nuclear Core > --- PROPULSION (2) --- VTOL Module VTOL Module > --- UTILITY (0) ------ (None) > --- WEAPON (1) ------- Autogun > --- INVENTORY (0) ---- (None) Peak State ------------ > --- POWER ------------ Improved Deuterium Engine > --- PROPULSION ------- Light Treads Light Treads > --- UTILITY ---------- Improved Heat Sink Improved Heat Sink Improved Light Armor Plating > --- WEAPON ----------- Gatling Laser Flak Gun > --- INVENTORY -------- (None) [Rating: 23] Favorites ----------- Power Improved Ion Engine Engine Improved Ion Engine Power Core Light Nuclear Core Propulsion Light Treads Treads Light Treads Leg Aluminum Leg Wheel Wheel Hover Unit Backup Propulsion I Flight Unit Flight Unit Utility Heat Sink Device Heat Sink Processor Terrain Scan Processor Protection Light Armor Plating Weapon Beam Rifle Energy Gun Beam Rifle Ballistic Gun Heavy Assault Rifle Special Weapon Welding Torch Build | -11 -10 -9 -8 -7 -7 -7 -7 ------- Run | Yrd Mat Mat Mat Fac Gar Fac Low Slots Evolved . | . . . . . . . . Power . | . . . . . . . . Propulsion . | . . . . . . . . Utility . | . . . . . . . . Weapon . | . . . . . . . . Parts Attached . | . . . . . . . . Power . | . . . . . . . . Engine . | . . . . . . . . Core . | . . . . . . . . Reactor . | . . . . . . . . Propulsion . | . . . . . . . . Treads . | . . . . . . . . Leg . | . . . . . . . . Wheel . | . . . . . . . . Hover . | . . . . . . . . Flight . | . . . . . . . . Utility . | . . . . . . . . Device . | . . . . . . . . Storage . | . . . . . . . . Processor . | . . . . . . . . Hackware . | . . . . . . . . Protection . | . . . . . . . . Artifact . | . . . . . . . . Weapon . | . . . . . . . . Energy Gun . | . . . . . . . . Energy Cannon . | . . . . . . . . Ballistic Gun . | . . . . . . . . Ballistic Cannon . | . . . . . . . . Launcher . | . . . . . . . . Special Weapon . | . . . . . . . . Impact Weapon . | . . . . . . . . Slashing Weapon . | . . . . . . . . Piercing Weapon . | . . . . . . . . Special Melee Weapon . | . . . . . . . . Unidentified Prototypes . | . . . . . . . . Parts Lost 33 | . 3 5 2 10 13 . . Power 4 | . . 1 . 1 2 . . Propulsion 13 | . 3 2 1 3 4 . . Utility 8 | . . . 1 4 3 . . Weapon 8 | . . 2 . 2 4 . . Highest Loss Streak 7 | . 1 3 2 7 7 . . To Critical Strikes 1 | . . . 1 . . . . Average Slot Usage (%) 84 | . 74 89 98 80 77 . 30 Engine 11 | . 23 15 12 11 3 . . Treads 14 | . . 4 24 14 14 . . Leg 2 | . . 18 . . . . . Hover 1 | . 12 . . 2 . . . Flight 2 | . 16 6 . . . . 15 Device 19 | . . 17 25 20 23 . . Protection 6 | . . 1 11 4 11 . . Energy Gun 10 | . . 11 12 11 10 . . Ballistic Gun 11 | . 23 6 12 11 11 . 7 Peak Build Rating 23 | . 4 11 11 23 23 . 9 Average Rating 11 | . 2 5 10 14 18 . 2 On Entrance 5 | . . . 11 9 23 . . Naked Turns 147 | . 22 22 . . 22 4 77 Heaviest Build 23 | . 4 18 18 23 23 . 8 Greatest Support 40 | 3 8 40 40 40 40 3 8 Greatest Overweight (x) 2 | . 1 . . 1 2 . . Average Overweight (x) . | . . . . . . . . Largest Inventory Capacity 1 | . . 1 1 1 1 . . Average Capacity . | . . . 1 1 . . . Most Carried . | . . . . . . . . Average Carried . | . . . . . . . . Final Capacity 1 | . . 1 1 1 . . . Final Carried . | . . . . . . . . Class Distribution -------------------- 75% | Sentry 10% | Swarmer 6% | Grunt 4% | Cogmind Dominant Class ---------------- Swarmer | -10/Materials Grunt | -9/Materials Sentry | -8/Materials Sentry | -7/Factory Sentry | -7/Garrison Cogmind | -7/Factory Cogmind | -7/Lower Caves Resources | -11 -10 -9 -8 -7 -7 -7 -7 ----------- Run | Yrd Mat Mat Mat Fac Gar Fac Low Matter Collected 370 | . 47 34 63 75 151 . . Remotely . | . . . . . . . . Salvage Created 1412 | . 265 211 326 145 465 . . Parts 94 | . 18 28 23 7 18 . . Haulers Intercepted . | . . . . . . . . Recyclers Shooed . | . . . . . . . . Parts Field Recycled . | . . . . . . . . Retrieved Matter . | . . . . . . . . Parts Self-Destructed . | . . . . . . . . Prevented . | . . . . . . . . Kills | -11 -10 -9 -8 -7 -7 -7 -7 ------- Run | Yrd Mat Mat Mat Fac Gar Fac Low Combat Hostiles Destroyed 47 | . 9 13 8 4 13 . . Guns 47 | . 9 13 8 4 13 . . Classes Destroyed 9 | . 3 2 . 3 1 . . Worker 1 | . . . . 1 . . . Builder 1 | . . . . 1 . . . Recycler 1 | . . . . 1 . . . Operator 1 | . . 1 . . . . . Watcher 1 | . 1 . . . . . . Swarmer 13 | . 5 6 . . 2 . . Grunt 19 | . 4 5 6 1 3 . . Sentry 12 | . . 2 2 3 5 . . Programmer 3 | . . . . . 3 . . Best Kill Streak 5 | . 4 5 3 3 5 . . Combat Bots Only 5 | . 4 5 3 1 5 . . Max Kills in Single Turn 2 | . 1 1 1 2 1 . . Gunslinging . | . . . . . . . . Exploded . | . . . . . . . . Melee . | . . . . . . . . Uniques/NPCs Destroyed . | . . . . . . . . Combat | -11 -10 -9 -8 -7 -7 -7 -7 -------- Run | Yrd Mat Mat Mat Fac Gar Fac Low Hostile Shots Fired 675 | . 67 82 37 174 301 . 14 Missed 187 | . 28 25 5 48 72 . 9 Damage Taken 5272 | . 357 661 475 1398 2327 . 54 Core 1098 | . 184 138 73 187 479 . 37 Absorbed by Shields . | . . . . . . . . Core Remaining (%) 69 | 100 26 65 86 . . . . Volleys Fired 228 | . 60 72 27 22 44 . 3 Largest 2 | . 1 2 2 2 2 . 1 Hottest 108 | . 20 79 79 108 108 . 23 Shots Fired 313 | . 60 73 54 43 80 . 3 Gun 312 | . 60 72 54 43 80 . 3 Cannon . | . . . . . . . . Launcher . | . . . . . . . . Special 1 | . . 1 . . . . . Kinetic 189 | . 60 33 27 22 44 . 3 Thermal 124 | . . 40 27 21 36 . . Explosive . | . . . . . . . . Electromagnetic . | . . . . . . . . Robot Hit Streak 27 | . 9 14 14 27 24 . 4 Robot Miss Streak 6 | . 5 2 2 3 6 . . Penetration Max . | . . . . . . . . Secondary Targets 3 | . . . . . 3 . . Max Gunslinging Chain 1 | . . . . . 1 . . Shots Hit Robots 255 | . 42 56 43 39 72 . 3 Core Hits 162 | . 20 24 18 31 68 . 1 Critical Kills 1 | . . 1 . . . . . Critical Parts Destroyed 1 | . . . 1 . . . . Critical Strikes 3 | . . 1 2 . . . . Burn 1 | . . . 1 . . . . Destroy 2 | . . 1 1 . . . . Melee Attacks . | . . . . . . . . Impact . | . . . . . . . . Slashing . | . . . . . . . . Piercing . | . . . . . . . . Sneak Attacks . | . . . . . . . . Combat Hostiles . | . . . . . . . . Follow-up Attacks . | . . . . . . . . Damage Inflicted 4667 | . 343 574 678 1310 1714 . 48 Guns 4353 | . 343 570 678 1003 1711 . 48 Cannons . | . . . . . . . . Explosions 287 | . . . . 287 . . . Melee . | . . . . . . . . Ramming 27 | . . 4 . 20 3 . . Kinetic 2191 | . 343 235 325 436 804 . 48 Thermal 2449 | . . 335 353 854 907 . . Explosive . | . . . . . . . . Electromagnetic . | . . . . . . . . Impact . | . . . . . . . . Slashing . | . . . . . . . . Piercing . | . . . . . . . . Highest Corruption 5 | . . . . 1 5 5 5 Average Corruption 3 | . . . . 1 3 5 5 Corruption Purged . | . . . . . . . . Corruption Blocked . | . . . . . . . . Effects 13 | . . . . . 11 . 2 Message Errors 3 | . . . . . 2 . 1 Matter Fused 3 | . . . . . 3 . . Heat Flow Errors 4 | . . . . . 3 . 1 Data Loss (minor) 1 | . . . . . 1 . . Data Loss (major) 2 | . . . . . 2 . . Overload Shots . | . . . . . . . . Overflow Damage 176 | . . . . 176 . . . Projectiles . | . . . . . . . . Explosions 176 | . . . . 176 . . . Melee . | . . . . . . . . Knockbacks . | . . . . . . . . Impact . | . . . . . . . . Kinetic . | . . . . . . . . Secondary . | . . . . . . . . Self-Inflicted Damage 391 | . . 1 . 387 3 . . Shots 4 | . . . . 4 . . . Rammed 9 | . . 2 . 7 . . . Targets Rammed 9 | . . 2 . 7 . . . Kicked . | . . . . . . . . Crushed . | . . . . . . . . Highest Temperature 327 | . 35 105 23 276 327 . 90 Average Temperature 59 | . 15 29 5 115 106 . 31 Received Heat Transfer 1461 | . 84 273 252 276 561 . 15 Effects 3 | . . . . . 3 . . Energy Bleed 1 | . . . . . 1 . . Interference 2 | . . . . . 2 . . Siege Activations . | . . . . . . . . Robots Corrupted . | . . . . . . . . Combat Hostiles . | . . . . . . . . Parts Fried . | . . . . . . . . Impact Corruptions . | . . . . . . . . Robots Melted . | . . . . . . . . Combat Hostiles . | . . . . . . . . Parts Melted 5 | . . . . . 5 . . Heat Transferred 4929 | . . 725 962 1473 1769 . . Parts Sabotaged . | . . . . . . . . Parts Stolen . | . . . . . . . . Parts Stripped . | . . . . . . . . Power Chain Reactions . | . . . . . . . . Alert | -11 -10 -9 -8 -7 -7 -7 -7 ------- Run | Yrd Mat Mat Mat Fac Gar Fac Low Peak Influence 552 | . 288 552 256 214 274 138 . Initial 156 | . . 121 156 70 46 138 . Average 175 | . 154 359 171 113 133 138 . Maximum Alert Level 2 | . 1 2 1 1 1 . . Low Security (%) 65 | . 76 8 53 94 84 100 . Level 1 30 | . 23 69 46 5 15 . . Level 2 3 | . . 22 . . . . . Level 3 . | . . . . . . . . Level 4 . | . . . . . . . . Level 5 . | . . . . . . . . High Security . | . . . . . . . . Max Security . | . . . . . . . . Squads Dispatched 3 | . 1 . 1 1 . . . Investigation 2 | . 1 . 1 . . . . Extermination 1 | . . . . 1 . . . Reinforcement . | . . . . . . . . Assault . | . . . . . . . . Garrison . | . . . . . . . . Intercept . | . . . . . . . . Searches Triggered . | . . . . . . . . Construction Impeded . | . . . . . . . . Haulers Reinforced . | . . . . . . . . Active Scanning Responses . | . . . . . . . . Cargo Convoy Interrupts . | . . . . . . . . Stealth | -11 -10 -9 -8 -7 -7 -7 -7 --------- Run | Yrd Mat Mat Mat Fac Gar Fac Low Distress Signals 4 | . 1 1 1 1 . . . Communications Jammed . | . . . . . . . . Distress Signals . | . . . . . . . . Times Spotted 99 | . 20 25 10 10 31 . 3 Peak Tracking Total 8 | . 4 5 3 3 8 . 3 Tactical Retreats 7 | . 2 1 1 . 3 . . Traps | -11 -10 -9 -8 -7 -7 -7 -7 ------- Run | Yrd Mat Mat Mat Fac Gar Fac Low Traps Triggered 4 | . 2 . . 1 1 . . Indirectly . | . . . . . . . . Trap Hack Attempts . | . . . . . . . . Triggered . | . . . . . . . . Disarmed . | . . . . . . . . Reprogrammed . | . . . . . . . . Reused . | . . . . . . . . Traps Extracted . | . . . . . . . . Installed . | . . . . . . . . Triggered . | . . . . . . . . Machines | -11 -10 -9 -8 -7 -7 -7 -7 ---------- Run | Yrd Mat Mat Mat Fac Gar Fac Low Machines Disabled 6 | . . . . 6 . . . Max in Single Turn 6 | . . . . 6 . . . Machines Repaired . | . . . . . . . . Machines Dismantled . | . . . . . . . . Machines Sabotaged . | . . . . . . . . Overloaded Fab Kills . | . . . . . . . . Hacking | -11 -10 -9 -8 -7 -7 -7 -7 --------- Run | Yrd Mat Mat Mat Fac Gar Fac Low Machines Accessed 6 | . 1 1 1 3 . . . Terminals 2 | . . 1 1 . . . . Fabricators . | . . . . . . . . Repair Stations 3 | . 1 . . 2 . . . Recycling Units . | . . . . . . . . Scanalyzers . | . . . . . . . . Garrison Access 1 | . . . . 1 . . . Total Hacks 8 | . 1 1 2 4 . . . Successful 4 | . 1 . 1 2 . . . Failed 4 | . . 1 1 2 . . . Catastrophic 2 | . . 1 1 . . . . Database Lockouts . | . . . . . . . . Manual 2 | . . . 2 . . . . Terminals 3 | . . 1 2 . . . . Fabricators . | . . . . . . . . Repair Stations 3 | . 1 . . 2 . . . Recycling Units . | . . . . . . . . Scanalyzers . | . . . . . . . . Garrison Access 2 | . . . . 2 . . . Terminal Hacks . | . . . . . . . . Fabricator Hacks . | . . . . . . . . Repair Station Hacks 2 | . 1 . . 1 . . . Refit 2 | . 1 . . 1 . . . Recycling Unit Hacks . | . . . . . . . . Scanalyzer . | . . . . . . . . Garrison Access Hacks 1 | . . . . 1 . . . Unlock Access 1 | . . . . 1 . . . Unauthorized Hacks 1 | . . . 1 . . . . Terminals 1 | . . . 1 . . . . Assimilate 1 | . . . 1 . . . . Fabricators . | . . . . . . . . Repair Stations . | . . . . . . . . Recycling Units . | . . . . . . . . Scanalyzers . | . . . . . . . . Garrison Access . | . . . . . . . . Data Cores Recovered 1 | . . 1 . . . . . Used 1 | . . 1 . . . . . Hacking Detections 4 | . . 1 1 2 . . . Full Trace Events 1 | . . . 1 . . . . Feedback Events . | . . . . . . . . Feedback Blocked . | . . . . . . . . Robot Schematics Acquired . | . . . . . . . . Robots Built . | . . . . . . . . Authchips . | . . . . . . . . Time . | . . . . . . . . Total Robot Build Rating . | . . . . . . . . Part Schematics Acquired . | . . . . . . . . Parts Built . | . . . . . . . . Authchips . | . . . . . . . . Time . | . . . . . . . . Total Part Build Rating . | . . . . . . . . Parts Repaired . | . . . . . . . . Time . | . . . . . . . . Parts Recycled . | . . . . . . . . Recycled Matter . | . . . . . . . . Retrieved Matter . | . . . . . . . . Retrieved Components . | . . . . . . . . Parts Scanalyzed . | . . . . . . . . Part Schematics Acquired . | . . . . . . . . Parts Damaged . | . . . . . . . . Bothacking | -11 -10 -9 -8 -7 -7 -7 -7 ------------ Run | Yrd Mat Mat Mat Fac Gar Fac Low Used RIF Installer . | . . . . . . . . Robots Hacked 11 | . 1 5 . 2 2 . 1 Non-combat 1 | . . 1 . . . . . Combat 10 | . 1 4 . 2 2 . 1 Robot Hacks Applied 13 | . 1 5 . 4 2 . 1 map_walls 1 | . . 1 . . . . . find_shortcuts 10 | . 1 4 . 2 2 . 1 find_garrison 2 | . . . . 2 . . . Relay Couplers Released . | . . . . . . . . Fabnet Peak Effective % . | . . . . . . . . Robots Rewired 4 | . . . . . 4 . . Allies Hacked . | . . . . . . . . Hacks Repelled . | . . . . . . . . Allies | -11 -10 -9 -8 -7 -7 -7 -7 -------- Run | Yrd Mat Mat Mat Fac Gar Fac Low Total Allies 7 | . . . . 3 4 . . Largest Group 4 | . . . . 3 4 . . Highest-Rated Group 101 | . . . . 93 101 . . Highest-Rated Ally 31 | . . . . 31 31 . . Total Orders 1 | . . . . . 1 . . STAY 1 | . . . . . 1 . . Ally Attacks 7 | . . . . . 7 . . Total Damage 166 | . . . . . 166 . . Kills 1 | . . . . . 1 . . Allies Corrupted . | . . . . . . . . Allies Melted . | . . . . . . . . Intel | -11 -10 -9 -8 -7 -7 -7 -7 ------- Run | Yrd Mat Mat Mat Fac Gar Fac Low Robot Analysis Total 6 | . 1 3 . 1 . . 1 Derelict Logs Recovered . | . . . . . . . . Drone Launches . | . . . . . . . . Drone Recoveries . | . . . . . . . . Exploration | -11 -10 -9 -8 -7 -7 -7 -7 ------------- Run | Yrd Mat Mat Mat Fac Gar Fac Low Turns Passed 3307 | . 254 499 922 913 609 4 106 Spaces Moved 1662 | 1 210 340 282 420 249 8 152 Core 309 | 1 55 65 . 4 46 8 130 Treads 947 | . . 46 282 416 203 . . Legs 98 | . . 98 . . . . . Wheels 85 | . . 85 . . . . . Hover 43 | . 43 . . . . . . Flight 180 | . 112 46 . . . . 22 Fastest Speed 32 | 50 37 37 160 50 50 50 32 Average Speed 123 | 50 56 90 160 171 148 50 47 Slowest Speed 240 | 50 100 160 160 240 240 50 50 Overloaded Moves . | . . . . . . . . Propulsion Burnouts . | . . . . . . . . Robots Hopped . | . . . . . . . . Cave-ins Triggered . | . . . . . . . . Exploration Rate (%) 27 | 2 46 40 33 17 29 . 23 Regions Visited 7 Branch Regions 1 Pre-discovered Areas . | . . . . . . . . Known Exits Taken 1 | . . . . 1 . . . Unknown Exits Taken 5 | 1 1 1 1 . . 1 . Scrap Searched . | . . . . . . . . Spaces Dug . | . . . . . . . . Terrain Destroyed 23 | . . . . 23 . . . Melee . | . . . . . . . . Projectile . | . . . . . . . . AOE 23 | . . . . 23 . . . Terrain Rammed 1 | . . . . . 1 . . Walls Destroyed . | . . . . . . . . Machines Disabled . | . . . . . . . . Actions | -11 -10 -9 -8 -7 -7 -7 -7 --------- Run | Yrd Mat Mat Mat Fac Gar Fac Low Total 2617 | . 296 464 699 567 399 7 185 Wait 689 | . 27 51 391 119 71 . 30 Move 1655 | . 209 339 281 419 248 7 152 Hop . | . . . . . . . . Pick Up . | . . . . . . . . Fast Attach . | . . . . . . . . Attach . | . . . . . . . . Detach . | . . . . . . . . Swap . | . . . . . . . . Drop . | . . . . . . . . Fire 228 | . 60 72 27 22 44 . 3 Melee . | . . . . . . . . Ram 9 | . . 2 . 6 1 . . Kick . | . . . . . . . . Crush 1 | . . . . 1 . . . Escape Stasis . | . . . . . . . . Rewire 35 | . . . . . 35 . . Trap . | . . . . . . . . Miscellaneous . | . . . . . . . . Route ------- -11/Scrapyard -10/Materials (discovered 2 exits: *Mat / [*Min]) -9/Materials (discovered 2 exits: *Mat / [*Min]) -8/Materials -7/Factory -7/Garrison -7/Factory -7/Lower Caves History --------- Turn | Location | Event 1 | -11/Scrapyard | Discovered new exit (range 0) 1 | -11/Scrapyard | Entered Materials 15 | -10/Materials | Discovered new exit (range 14) 205 | -10/Materials | Core integrity fell below 50% 245 | -10/Materials | Discovered new exit (range 4) 255 | -10/Materials | Entered another Materials area 323 | -9/Materials | Discovered new exit (range 13) 431 | -9/Materials | Lost 3 parts (1p2n) 467 | -9/Materials | Discovered new exit (range 16) 754 | -9/Materials | Entered another Materials area 1610 | -8/Materials | Discovered new exit (range 8) 1676 | -8/Materials | Entered Factory 2138 | -7/Factory | Lost 3 parts (1n2u) 2413 | -7/Factory | Lost 7 parts (1p2n2u2w) 2453 | -7/Factory | Allied Derelicts emerged from ambush trap array 2577 | -7/Factory | Identified exit to Garrison 2589 | -7/Factory | Entered Garrison 2589 | -7/Garrison | Accompanied by 2 allies 2639 | -7/Garrison | Triggered checkpoint 2759 | -7/Garrison | Triggered checkpoint 2878 | -7/Garrison | Core integrity fell below 50% 2931 | -7/Garrison | Lost 7 parts (1p2n2u2w) 3130 | -7/Garrison | Lost 3 allies 3145 | -7/Garrison | Triggered checkpoint 3153 | -7/Garrison | Core integrity fell below 20% 3194 | -7/Garrison | Discovered new exit (range 8) 3198 | -7/Garrison | Entered Factory 3198 | -7/Factory | Discovered new exit (range 7) 3202 | -7/Factory | Entered Lower Caves 3203 | -7/Lower Caves | Lost 3 parts (1n1u1w) 3301 | -7/Lower Caves | Attracted the attention of an 0b10 checkpoint 3308 | -7/Lower Caves | Destroyed by G-47 Trooper with Particle Gun Last Messages --------------- lost. 03161_ Penetrated by Slug. 03164_ Y-54 Guardian destroyed. 03164_ Penetrated by Slug. 03172_ Imp. Light Armor Plating destroyed. 03173_ Penetrated by Slug. 03177_ Released control of Y-54 Guardian. 03179_ Y-54 Guardian reactivates. 03194_ EXIT=FOUND LOCATION=UNKNOWN GOAL=ESCAPE 03198_ EXIT=FOUND LOCATION=UNKNOWN GOAL=ESCAPE 03257_ System corrupted: Heat flow error (+115). 03279_ Took control of S-27 Virus. 03279_ Extracted analysis data for S-27 Virus. 03300_ P Z>VY6DEB>XKUQ%CT:KE/MTJJ|